bitfinex/quotes_BTCUSD_20251021
["timestamp","ask_amount","ask_price","bid_price","bid_amount"]
[1761005714659,3.36452876,110460.0,110450.0,0.18107741]
[1761005714804,3.38129032,110460.0,110450.0,0.17696915]
[1761005715005,3.38129032,110460.0,110450.0,0.19507689]
[1761005715207,3.36452876,110460.0,110450.0,0.19507689]
[1761005717028,0.02452876,110460.0,110450.0,0.19507689]
[1761005717160,0.21085754,110470.0,110460.0,0.18106101]
[1761005717374,3.01022064,110470.0,110460.0,0.18106101]
[1761005717574,3.01022064,110470.0,110460.0,0.19090364]
[1761005717817,3.03322162,110470.0,110460.0,0.18106101]
[1761005718317,3.02300098,110470.0,110460.0,0.18120813]
[1761005719808,0.02300098,110470.0,110460.0,0.18120813]
[1761005720128,0.34,110480.0,110470.0,0.18104462]
[1761005720342,3.36653937,110480.0,110470.0,0.18104462]
[1761005721518,3.37269779,110480.0,110470.0,0.18104462]
[1761005722783,3.37269779,110480.0,110470.0,0.13704462]
[1761005722971,3.37269779,110480.0,110470.0,0.15514908]
[1761005724010,3.36288686,110480.0,110470.0,0.15514908]
[1761005724220,0.02288686,110480.0,110470.0,0.15514908]
[1761005724405,0.34,110480.0,110470.0,0.2003008]
[1761005724614,0.34,110480.0,110470.0,0.18219634]
[1761005725242,0.3632716,110480.0,110470.0,0.18219634]
[1761005725451,0.0232716,110480.0,110470.0,0.18219634]
[1761005725656,0.34,110500.0,110480.0,0.18101462]
[1761005725862,3.3491965,110500.0,110490.0,0.01810118]
[1761005727821,3.3491965,110500.0,110490.0,0.19911303]
[1761005728029,3.37236098,110500.0,110490.0,0.18101185]
[1761005729319,3.37393866,110500.0,110490.0,0.18101185]
[1761005729574,3.0,110490.0,110480.0,0.29609462]
[1761005729812,3.0,110490.0,110480.0,0.31382894]
[1761005736990,3.0,110490.0,110480.0,0.24682894]
[1761005742178,0.01680004,110490.0,110480.0,0.24682894]
[1761005742393,0.01782639,110490.0,110480.0,0.24682894]
[1761005742949,0.00102635,110490.0,110480.0,0.24682894]
[1761005743390,0.00102635,110490.0,110480.0,0.33664795]
[1761005746136,0.00102635,110490.0,110480.0,0.33764795]
[1761005749493,3.0,110510.0,110500.0,0.18098429]
[1761005749693,3.01682238,110510.0,110500.0,0.21808896]
[1761005750089,3.0175064,110510.0,110500.0,0.33284896]
[1761005750686,3.01799768,110510.0,110500.0,0.33284896]
[1761005751510,0.01799768,110510.0,110500.0,0.33284896]
[1761005753725,0.0011753,110510.0,110500.0,0.42366797]
[1761005758133,0.3411753,110510.0,110500.0,0.29667547]
[1761005758703,0.3411753,110510.0,110500.0,0.001]
[1761005758907,3.38283904,110510.0,110500.0,0.001]
[1761005759526,3.39142127,110510.0,110500.0,0.001]
[1761005760089,3.39142127,110510.0,110490.0,0.29568627]
[1761005760302,3.02485689,110500.0,110490.0,0.33933493]
[1761005760512,0.02485689,110500.0,110490.0,0.33933493]
[1761005761911,0.34907351,110510.0,110500.0,0.18099547]
[1761005762106,3.36588113,110510.0,110500.0,0.18099547]
[1761005762405,3.34049128,110510.0,110500.0,0.18099547]
[1761005762642,3.34049128,110510.0,110500.0,0.23302851]
[1761005763571,0.34049128,110510.0,110500.0,0.23302851]
[1761005763697,0.00049128,110510.0,110500.0,0.32284752]
[1761005764650,0.00049128,110510.0,110500.0,0.05203304]
[1761005764792,0.00049128,110510.0,110500.0,0.29563547]
[1761005765225,0.00049128,110510.0,110500.0,0.29663547]
[1761005765658,0.02534817,110510.0,110500.0,0.29563547]
[1761005766185,0.02603219,110510.0,110500.0,0.29563547]
[1761005768456,0.36603219,110510.0,110500.0,0.29563547]
[1761005768655,0.36603219,110510.0,110500.0,0.34766451]
[1761005769590,0.02603219,110510.0,110500.0,0.34766451]
[1761005769836,0.36603219,110510.0,110500.0,0.34766451]
[1761005770969,0.0011753,110510.0,110500.0,0.34766451]
[1761005771161,0.3411753,110510.0,110500.0,0.34766451]
[1761005772900,0.0061753,110510.0,110500.0,0.34766451]
[1761005773098,0.3461753,110510.0,110500.0,0.34766451]
[1761005775171,0.3461753,110510.0,110500.0,0.05202904]
[1761005775421,3.0,110500.0,110490.0,0.22465203]
[1761005775685,3.0,110500.0,110490.0,0.33921203]
[1761005776727,3.0,110500.0,110490.0,0.34021203]
[1761005779650,3.0,110500.0,110490.0,0.34017203]
[1761005780893,3.00034204,110500.0,110490.0,0.34017203]
[1761005781077,3.37419065,110500.0,110490.0,0.001]
[1761005781285,3.37419065,110500.0,110490.0,0.20011303]
[1761005781522,3.37419065,110500.0,110490.0,0.29653185]
[1761005782491,3.37419065,110500.0,110490.0,0.29553185]
[1761005782691,3.37419065,110500.0,110490.0,0.34318684]
[1761005782890,3.37419065,110500.0,110490.0,0.18101185]
[1761005788152,3.34933376,110500.0,110490.0,0.18101185]
[1761005788360,3.34034204,110500.0,110490.0,0.18101185]
[1761005788537,0.34034204,110500.0,110490.0,0.18101185]
[1761005788732,0.00034204,110500.0,110490.0,0.18101185]
[1761005788919,0.00034204,110500.0,110490.0,0.22866684]
[1761005789759,0.00034204,110500.0,110490.0,0.22966684]
[1761005791316,0.00034204,110500.0,110490.0,0.31948585]
[1761005793256,0.00034204,110500.0,110490.0,0.46768585]
[1761005795408,0.00034204,110500.0,110490.0,0.37786684]
[1761005795620,0.00034204,110500.0,110490.0,0.49230684]
[1761005796744,0.02655959,110500.0,110490.0,0.49226684]
[1761005799107,0.02655959,110500.0,110490.0,0.49126684]
[1761005799317,0.02655959,110500.0,110490.0,0.34306684]
[1761005799753,0.04455131,110500.0,110490.0,0.34306684]
[1761005801436,0.01833376,110500.0,110490.0,0.34306684]
[1761005801683,0.00933376,110500.0,110490.0,0.34306684]
[1761005802870,0.00034204,110500.0,110490.0,0.34306684]
[1761005803709,0.00034204,110500.0,110490.0,0.43288585]
[1761005804938,0.00034204,110500.0,110490.0,0.43388585]
[1761005805345,0.00034204,110500.0,110490.0,0.43288585]
[1761005805551,0.00034204,110500.0,110490.0,0.43388585]
[1761005811117,0.00034204,110500.0,110490.0,0.58208585]
[1761005811765,0.00034204,110500.0,110490.0,0.47006813]
[1761005811970,0.00034204,110500.0,110490.0,0.48006812]
[1761005812729,0.00034204,110500.0,110490.0,0.47906812]
[1761005813143,0.00034204,110500.0,110490.0,0.48006812]
[1761005813619,0.00034204,110500.0,110490.0,0.62826812]
[1761005813828,0.00034204,110500.0,110490.0,0.63826811]
[1761005815158,0.00034204,110500.0,110490.0,0.66547797]
[1761005816755,0.00034204,110500.0,110490.0,0.70235623]
[1761005820465,1e-08,110500.0,110490.0,0.55415623]
[1761005821643,1e-08,110500.0,110490.0,0.70235623]
[1761005823197,1e-08,110500.0,110490.0,1.04235623]
[1761005823611,0.22715442,110540.0,110530.0,0.18094634]
[1761005823821,0.00014729,110540.0,110530.0,0.33145576]
[1761005825331,0.03785655,110540.0,110530.0,0.33145576]
[1761005825600,0.00014729,110540.0,110530.0,0.33145576]
[1761005827115,0.00014729,110540.0,110530.0,0.33245576]
[1761005828614,0.00014729,110540.0,110530.0,0.33345576]
[1761005829034,0.00014729,110540.0,110530.0,0.42327477]
[1761005829248,0.00151489,110540.0,110530.0,0.42327477]
[1761005829455,0.00151489,110540.0,110530.0,0.45945705]
[1761005829668,29.04746248,110550.0,110540.0,0.21711226]
[1761005829878,29.04746248,110550.0,110540.0,0.37921203]
[1761005830518,28.62558986,110550.0,110540.0,0.39921201]
[1761005831346,28.62558986,110550.0,110540.0,0.40021201]
[1761005832178,28.62558986,110550.0,110540.0,0.40221201]
[1761005832395,28.62558986,110550.0,110540.0,0.38121203]
[1761005832815,28.62558986,110550.0,110540.0,0.49549203]
[1761005833028,28.62558986,110550.0,110540.0,0.45930975]
[1761005833698,28.99180741,110550.0,110540.0,0.002]
[1761005833914,28.99180741,110550.0,110540.0,0.18492998]
[1761005834147,29.02771597,110550.0,110540.0,0.29920998]
[1761005834355,29.02771597,110550.0,110540.0,0.29720998]
[1761005834570,29.02771597,110550.0,110540.0,0.29820998]
[1761005834779,29.02771597,110550.0,110540.0,0.34774455]
[1761005835194,29.02805778,110550.0,110540.0,0.34774455]
[1761005835406,29.02805778,110550.0,110540.0,0.34674455]
[1761005835824,29.02805778,110550.0,110540.0,0.34774455]
[1761005836239,28.62593167,110550.0,110540.0,0.43756356]
[1761005836450,28.62593167,110550.0,110540.0,0.47374584]
[1761005837925,28.62593167,110550.0,110540.0,0.62194584]
[1761005838348,28.62593167,110550.0,110540.0,0.62294584]
[1761005839605,28.62593167,110550.0,110540.0,0.62194584]
[1761005840225,28.62593167,110550.0,110540.0,0.62294584]
[1761005841467,28.62593167,110550.0,110540.0,0.47474584]
[1761005846825,28.62593167,110550.0,110540.0,0.62294584]
[1761005848221,28.62593167,110550.0,110540.0,0.47248356]
[1761005848641,28.62593167,110550.0,110540.0,0.58672356]
[1761005848844,28.65214922,110550.0,110540.0,0.47248356]
[1761005849033,28.65214922,110550.0,110540.0,0.38266455]
[1761005849440,28.65214922,110550.0,110540.0,0.26444]
[1761005849655,31.99214922,110550.0,110540.0,0.002]
[1761005849849,32.17306283,110550.0,110540.0,0.002]
[1761005850090,31.99214922,110550.0,110540.0,0.001]
[1761005850877,0.34,110540.0,110530.0,0.29518621]
[1761005851074,0.36621755,110540.0,110530.0,0.34381088]
[1761005857624,0.34,110540.0,110530.0,0.34381088]
[1761005865036,28.62593167,110550.0,110540.0,0.18092998]
[1761005865219,28.96593167,110550.0,110540.0,0.18092998]
[1761005870788,28.96593167,110550.0,110540.0,0.29516998]
[1761005871022,28.96593167,110550.0,110540.0,0.37144597]
[1761005871226,28.96593167,110550.0,110540.0,0.25720597]
[1761005871630,28.96593167,110550.0,110540.0,0.37144597]
[1761005873515,28.96593167,110550.0,110540.0,0.25720597]
[1761005873712,28.96593167,110550.0,110540.0,0.37144597]
[1761005884719,28.62593167,110550.0,110540.0,0.37144597]
[1761005886431,28.62593167,110550.0,110540.0,0.37244597]
[1761005887180,28.62593167,110550.0,110540.0,0.37344597]
[1761005889466,28.47240769,110550.0,110540.0,0.37344597]
[1761005896100,28.47240769,110550.0,110540.0,0.46326498]
[1761005902575,28.47240769,110550.0,110540.0,0.49944726]
[1761005903353,28.47240769,110550.0,110540.0,0.49844726]
[1761005903567,28.47240769,110550.0,110540.0,0.49744726]
[1761005903760,28.47240769,110550.0,110540.0,0.49844726]
[1761005904010,28.47240769,110550.0,110540.0,0.49944726]
[1761005904212,28.47240769,110550.0,110540.0,0.38520726]
[1761005904416,28.47240769,110550.0,110540.0,0.46326498]
[1761005912551,28.27654555,110550.0,110540.0,0.46326498]
[1761005912758,28.27654555,110550.0,110540.0,0.48141498]
[1761005912969,28.27654555,110550.0,110540.0,0.46326498]
[1761005914037,28.27654555,110550.0,110540.0,0.4939771]
[1761005914242,28.27654555,110550.0,110540.0,0.53015938]
[1761005914663,28.27654555,110550.0,110540.0,0.55735794]
[1761005923622,28.27654555,110550.0,110540.0,0.52664582]
[1761005926521,28.27654555,110550.0,110540.0,0.53664581]
[1761005926522,27.79749151,110550.0,110540.0,0.53664581]
[1761005926740,27.79749151,110550.0,110540.0,0.5466458]
[1761005926956,27.51300982,110550.0,110540.0,0.5466458]
[1761005927163,27.22107028,110550.0,110540.0,0.5466458]
[1761005927368,27.22107028,110550.0,110540.0,0.8856458]
[1761005927578,26.92181474,110550.0,110540.0,0.8856458]
[1761005927789,26.57025526,110550.0,110540.0,0.8866458]
[1761005927998,26.55489689,110550.0,110540.0,0.8866458]
[1761005928177,26.27098997,110550.0,110540.0,0.8866458]
[1761005928549,25.89576192,110550.0,110540.0,0.8886458]
[1761005929825,25.47264936,110550.0,110540.0,0.8886458]
[1761005930180,25.05420534,110550.0,110540.0,0.8886458]
[1761005933447,25.05420534,110550.0,110540.0,0.87864581]
[1761005933651,25.05420534,110550.0,110540.0,0.8886458]
[1761005933783,25.05420534,110550.0,110540.0,0.5486458]
[1761005935729,24.67909733,110550.0,110540.0,0.53864581]
[1761005936149,24.67909733,110550.0,110540.0,0.5486458]
[1761005937397,24.67909733,110550.0,110540.0,0.52856582]
[1761005938277,24.70531488,110550.0,110540.0,0.52856582]
[1761005939129,24.70531488,110550.0,110540.0,0.52656582]
[1761005939330,24.70531488,110550.0,110540.0,0.52556582]
[1761005939596,24.70531488,110550.0,110540.0,0.52656582]
[1761005939799,24.70531488,110550.0,110540.0,0.52556582]
[1761005940231,24.70531488,110550.0,110540.0,0.52656582]
[1761005941357,24.67909733,110550.0,110540.0,0.37622354]
[1761005941573,24.67909733,110550.0,110540.0,0.46318498]
[1761005942833,24.67909733,110550.0,110540.0,0.46218498]
[1761005943359,24.67909733,110550.0,110540.0,0.46318498]
[1761005944839,24.71024356,110550.0,110540.0,0.46318498]
[1761005945060,24.67909733,110550.0,110540.0,0.46318498]
[1761005956691,24.67909733,110550.0,110540.0,0.61138498]
[1761005957730,24.67909733,110550.0,110540.0,0.64756726]
[1761005959923,24.67909733,110550.0,110540.0,0.67476587]
[1761005969328,24.12460271,110550.0,110540.0,1.01476587]
[1761005969569,24.11785022,110550.0,110540.0,1.03476585]
[1761005970014,23.70907979,110550.0,110540.0,1.03476585]
[1761005970371,23.70907979,110550.0,110540.0,1.03276585]
[1761005970611,23.29635278,110550.0,110540.0,1.03476585]
[1761005970857,22.95515502,110550.0,110540.0,1.03376585]
[1761005971059,22.95515502,110550.0,110540.0,1.03276585]
[1761005971269,22.60181335,110550.0,110540.0,1.03476585]
[1761005971472,22.60181335,110550.0,110540.0,1.03676585]
[1761005973249,22.60181335,110550.0,110540.0,1.02676586]
[1761005973493,22.60181335,110550.0,110540.0,1.03676585]
[1761005974188,22.60181335,110550.0,110540.0,1.05676585]
[1761005974669,22.60181335,110550.0,110540.0,1.30186585]
[1761005979156,22.18189737,110550.0,110540.0,1.30186585]
[1761005979383,22.18189737,110550.0,110540.0,1.15152357]
[1761005979575,22.18189737,110550.0,110540.0,1.24564359]
[1761005980024,22.18189737,110550.0,110540.0,1.28182587]
[1761005980225,22.18189737,110550.0,110540.0,1.27982587]
[1761005980452,22.18189737,110550.0,110540.0,1.03372587]
[1761005980863,22.18189737,110550.0,110540.0,1.03472587]
[1761005982433,22.18189737,110550.0,110540.0,0.69472587]
[1761005982638,22.18189737,110550.0,110540.0,1.04472586]
[1761005982839,22.18189737,110550.0,110540.0,1.03472587]
[1761005984781,22.18189737,110550.0,110540.0,1.04472586]
[1761005986237,21.72130146,110550.0,110540.0,1.05472585]
[1761005989448,21.29868351,110550.0,110540.0,1.05472585]
[1761005992261,21.29868351,110550.0,110540.0,1.29982585]
[1761005992692,21.29868351,110550.0,110540.0,1.39519585]
[1761005992893,21.29868351,110550.0,110540.0,1.29982585]
[1761005994851,21.10582732,110550.0,110540.0,1.29982585]
[1761005998274,21.10582732,110550.0,110540.0,1.05472585]
[1761006000834,21.10582732,110550.0,110540.0,1.10472585]
[1761006005704,19.84773611,110550.0,110540.0,3.88024986]
[1761006006062,19.02629357,110550.0,110540.0,4.38706986]
[1761006006254,18.72318461,110550.0,110540.0,4.15196985]
[1761006006451,18.26828263,110550.0,110540.0,4.15196985]
[1761006006684,18.26828263,110550.0,110540.0,4.15096985]
[1761006006895,18.26828263,110550.0,110540.0,4.14996985]
[1761006006896,18.08186623,110550.0,110540.0,4.14996985]
[1761006007098,18.08186623,110550.0,110540.0,4.15096985]
[1761006007303,17.8060915,110550.0,110540.0,4.15096985]
[1761006007503,17.60470246,110550.0,110540.0,4.19937102]
[1761006007763,17.36539257,110550.0,110540.0,4.10600102]
[1761006008144,17.11622635,110550.0,110540.0,4.10900102]
[1761006008754,16.51125512,110550.0,110540.0,4.10900102]
[1761006009271,16.21139785,110550.0,110540.0,4.10900102]
[1761006009478,15.95387868,110550.0,110540.0,4.10900102]
[1761006010109,15.44045667,110550.0,110540.0,4.10900102]
[1761006010320,15.43086288,110550.0,110540.0,4.10900102]
[1761006010529,14.12254915,110550.0,110540.0,4.20437102]
[1761006010736,13.99456727,110550.0,110540.0,4.20437102]
[1761006010944,13.81080813,110550.0,110540.0,4.20437102]
[1761006011157,13.37570766,110550.0,110540.0,4.20437102]
[1761006011415,13.348541,110550.0,110540.0,4.20437102]
[1761006011622,13.14614624,110550.0,110540.0,4.20137102]
[1761006011825,12.77660905,110550.0,110540.0,4.20437102]
[1761006012030,12.60043391,110550.0,110540.0,4.20437102]
[1761006012251,12.39869671,110550.0,110540.0,4.20137102]
[1761006012496,12.21541992,110550.0,110540.0,4.20137102]
[1761006012712,11.86383257,110550.0,110540.0,4.10900102]
[1761006012918,11.80949925,110550.0,110540.0,4.10900102]
[1761006013091,11.61045075,110550.0,110540.0,4.10900102]
[1761006013316,11.42961135,110550.0,110540.0,4.10900102]
[1761006013519,11.31392105,110550.0,110540.0,3.95869874]
[1761006013651,11.31392105,110550.0,110540.0,4.03649876]
[1761006014103,11.31392105,110550.0,110540.0,4.12016987]
[1761006014280,11.31392105,110550.0,110540.0,3.62994759]
[1761006014486,11.31392105,110550.0,110540.0,4.08398759]
[1761006014689,11.31392105,110550.0,110540.0,4.11716987]
[1761006014890,11.31392105,110550.0,110540.0,3.79716985]
[1761006015365,11.31392105,110550.0,110540.0,3.79416985]
[1761006015540,11.31392105,110550.0,110540.0,4.13416985]
[1761006015742,11.31392105,110550.0,110540.0,4.13616985]
[1761006016152,11.31392105,110550.0,110540.0,4.13916985]
[1761006016778,11.31392105,110550.0,110540.0,4.11916987]
[1761006016975,11.31392105,110550.0,110540.0,4.13916985]
[1761006017721,11.31392105,110550.0,110540.0,4.11916987]
[1761006017983,11.31392105,110550.0,110540.0,4.13916985]
[1761006021682,10.89517736,110550.0,110540.0,4.13916985]
[1761006021903,10.47894808,110550.0,110540.0,4.13916985]
[1761006022110,10.33373161,110550.0,110540.0,4.13916985]
[1761006022321,9.92165227,110550.0,110540.0,4.13916985]
[1761006022521,9.58339583,110550.0,110540.0,4.15728985]
[1761006022781,9.55622805,110550.0,110540.0,4.25265985]
[1761006022983,9.3982125,110550.0,110540.0,4.25265985]
[1761006023188,9.24844573,110550.0,110540.0,4.25265985]
[1761006023387,8.94389304,110550.0,110540.0,4.25265985]
[1761006023596,8.74377672,110550.0,110540.0,4.25265985]
[1761006023806,8.43462033,110550.0,110540.0,4.21647757]
[1761006024048,8.40745255,110550.0,110540.0,4.25265985]
[1761006024228,8.13649119,110550.0,110540.0,4.25265985]
[1761006024435,7.95087888,110550.0,110540.0,4.25265985]
[1761006024674,7.72059081,110550.0,110540.0,4.25265985]
[1761006024880,7.46754213,110550.0,110540.0,4.25265985]
[1761006025097,7.31934213,110550.0,110540.0,4.34955985]
[1761006026629,7.31934213,110550.0,110540.0,4.35855985]
[1761006027096,6.9107064,110550.0,110540.0,4.35855985]
[1761006027314,6.787537,110550.0,110540.0,4.35855985]
[1761006027516,6.53520571,110550.0,110540.0,4.35855985]
[1761006027750,6.44902765,110550.0,110540.0,4.35855985]
[1761006028389,6.44902765,110550.0,110540.0,4.14914985]
[1761006028583,6.44902765,110550.0,110540.0,4.26318985]
[1761006029000,6.44902765,110550.0,110540.0,4.25318986]
[1761006029562,6.44902765,110550.0,110540.0,4.26318985]
[1761006030127,6.44902765,110550.0,110540.0,4.23318988]
[1761006030444,6.44902765,110550.0,110540.0,4.24318987]
[1761006030638,6.44902765,110550.0,110540.0,4.26318985]
[1761006030862,6.30082765,110550.0,110540.0,4.26318985]
[1761006031191,6.30082765,110550.0,110540.0,3.92318985]
[1761006031483,6.30082765,110550.0,110540.0,4.26318985]
[1761006033862,6.30082765,110550.0,110540.0,4.24318987]
[1761006035424,6.30082765,110550.0,110540.0,4.02324987]
[1761006035837,6.30082765,110550.0,110540.0,4.13728987]
[1761006036691,6.30082765,110550.0,110540.0,3.99808987]
[1761006036886,6.30082765,110550.0,110540.0,3.65808987]
[1761006037096,6.30082765,110550.0,110540.0,3.64089125]
[1761006037323,6.30082765,110550.0,110540.0,3.98089125]
[1761006037863,6.30082765,110550.0,110540.0,3.95277126]
[1761006038103,6.30082765,110550.0,110540.0,3.96277125]
[1761006038851,6.30082765,110550.0,110540.0,3.95977125]
[1761006039062,6.30082765,110550.0,110540.0,3.95777125]
[1761006039279,6.30082765,110550.0,110540.0,3.95977125]
[1761006039484,6.30082765,110550.0,110540.0,3.96177125]
[1761006040604,6.30082765,110550.0,110540.0,3.95277125]
[1761006045200,6.30082765,110550.0,110540.0,0.95277125]
[1761006045746,6.09738991,110550.0,110540.0,1.09197125]
[1761006047495,6.07925991,110550.0,110540.0,1.11009125]
[1761006055469,6.07925991,110550.0,110540.0,1.01229125]
[1761006057476,6.06112991,110550.0,110540.0,1.01229125]
[1761006062012,6.06112991,110550.0,110540.0,1.00229126]
[1761006062212,6.06112991,110550.0,110540.0,1.01229125]
[1761006066645,6.06112991,110550.0,110540.0,0.83136127]
[1761006066863,6.06112991,110550.0,110540.0,0.61785901]
[1761006067271,6.06112991,110550.0,110540.0,0.66404128]
[1761006067486,6.06112991,110550.0,110540.0,0.66204128]
[1761006067697,6.06112991,110550.0,110540.0,0.66004128]
[1761006067899,6.06112991,110550.0,110540.0,0.31004129]
[1761006068117,6.06112991,110550.0,110540.0,0.27485901]
[1761006068944,6.06112991,110550.0,110540.0,0.27385901]
[1761006069155,6.03395679,110550.0,110540.0,0.27585901]
[1761006069567,6.03395679,110550.0,110540.0,0.27485901]
[1761006069928,6.03395679,110550.0,110540.0,0.27585901]
[1761006075257,6.03395679,110550.0,110540.0,0.45678899]
[1761006076132,6.03395679,110550.0,110540.0,0.27585901]
[1761006077586,6.03395679,110550.0,110540.0,0.16181901]
[1761006077724,6.03395679,110550.0,110540.0,0.27585901]
[1761006078333,6.03395679,110550.0,110540.0,0.27485901]
[1761006078543,6.03395679,110550.0,110540.0,0.16081901]
[1761006078750,6.03395679,110550.0,110540.0,0.27385901]
[1761006079156,6.03395679,110550.0,110540.0,0.27485901]
[1761006079767,6.03395679,110550.0,110540.0,0.27385901]
[1761006080005,6.06017434,110550.0,110540.0,0.18404]
[1761006080416,6.03395679,110550.0,110540.0,0.18404]
[1761006081312,6.06017434,110550.0,110540.0,0.18404]
[1761006081736,6.03395679,110550.0,110540.0,0.18404]
[1761006085384,6.03395679,110550.0,110540.0,0.07]
[1761006085566,6.03395679,110550.0,110540.0,0.18404]
[1761006091362,6.03395679,110550.0,110540.0,0.27385901]
[1761006099352,6.03395679,110550.0,110540.0,0.30105905]
[1761006101002,6.03395679,110550.0,110540.0,0.30205905]
[1761006118356,6.03395679,110550.0,110540.0,0.48298903]
[1761006118565,6.03395679,110550.0,110540.0,0.82298903]
[1761006118801,6.03395679,110550.0,110540.0,0.8691713]
[1761006119212,6.03395679,110550.0,110540.0,0.85917131]
[1761006119416,6.03395679,110550.0,110540.0,0.87917129]
[1761006120712,6.03395679,110550.0,110540.0,0.8691713]
[1761006120938,6.03395679,110550.0,110540.0,0.87917129]
[1761006121160,6.03395679,110550.0,110540.0,0.8691713]
[1761006121376,6.03395679,110550.0,110540.0,0.84366494]
[1761006121596,6.03395679,110550.0,110540.0,0.83366495]
[1761006121804,6.03395679,110550.0,110540.0,0.65273497]
[1761006122226,6.03395679,110550.0,110540.0,0.84366494]
[1761006123108,6.03395679,110550.0,110540.0,0.98286494]
[1761006125489,6.03395679,110550.0,110540.0,0.99286493]
[1761006126065,6.03395679,110550.0,110540.0,0.98286494]
[1761006127261,6.03395679,110550.0,110540.0,0.97286495]
[1761006128923,6.03395679,110550.0,110540.0,0.83366495]
[1761006130124,6.03400592,110550.0,110540.0,0.82866495]
[1761006133152,6.03400592,110550.0,110540.0,0.82366495]
[1761006134944,6.03400592,110550.0,110540.0,0.96286495]
[1761006136508,6.03400592,110550.0,110540.0,0.84882495]
[1761006136681,6.03400592,110550.0,110540.0,0.96278495]
[1761006140824,6.03400592,110550.0,110540.0,0.82358495]
[1761006144551,6.00650392,110550.0,110540.0,0.82358495]
[1761006150451,6.00650392,110550.0,110540.0,3.84358493]
[1761006150654,6.00650392,110550.0,110540.0,4.00090493]
[1761006150831,5.99178677,110550.0,110540.0,4.00090493]
[1761006151285,5.99178677,110550.0,110540.0,3.99990493]
[1761006151410,5.99178677,110550.0,110540.0,4.00090493]
[1761006151615,5.99178677,110550.0,110540.0,4.00190493]
[1761006152048,5.99178677,110550.0,110540.0,4.00090493]
[1761006152451,5.99178677,110550.0,110540.0,4.00290493]
[1761006153181,5.99178677,110550.0,110540.0,4.09827493]
[1761006153389,5.99178677,110550.0,110540.0,4.00290493]
[1761006154090,5.99178677,110550.0,110540.0,3.98290495]
[1761006154275,5.99178677,110550.0,110540.0,1.00290493]
[1761006154713,5.99178677,110550.0,110540.0,0.99290494]
[1761006154913,5.99178677,110550.0,110540.0,0.98290495]
[1761006155114,5.99178677,110550.0,110540.0,1.00290493]
[1761006155288,5.99178677,110550.0,110540.0,0.99290494]
[1761006155531,5.99178677,110550.0,110540.0,1.09070494]
[1761006156030,5.99178677,110550.0,110540.0,1.10070493]
[1761006156227,5.99178677,110550.0,110540.0,1.09070494]
[1761006156470,5.99178677,110550.0,110540.0,1.08070495]
[1761006157088,5.79898122,110550.0,110540.0,1.09070494]
[1761006157294,5.79898122,110550.0,110540.0,1.08070495]
[1761006157450,5.79898122,110550.0,110540.0,1.09070494]
[1761006157650,5.79898122,110550.0,110540.0,1.10070493]
[1761006158624,5.79898122,110550.0,110540.0,0.96150493]
[1761006160143,5.79898122,110550.0,110540.0,0.96150493]
[1761006161710,5.79898122,110550.0,110540.0,0.94150495]
[1761006161916,5.79898122,110550.0,110540.0,0.96150493]
[1761006162117,5.79898122,110550.0,110540.0,0.95150494]
[1761006162297,5.79898122,110550.0,110540.0,0.73974494]
[1761006162487,5.79898122,110550.0,110540.0,0.85366494]
[1761006162932,5.79898122,110550.0,110540.0,0.86366493]
[1761006163478,5.79898122,110550.0,110540.0,0.85366494]
[1761006163704,5.79898122,110550.0,110540.0,0.84366495]
[1761006163934,5.79898122,110550.0,110540.0,0.86366493]
[1761006164663,5.79898122,110550.0,110540.0,1.00286493]
[1761006165781,5.79898122,110550.0,110540.0,0.99286494]
[1761006166123,5.79898122,110550.0,110540.0,1.00286493]
[1761006167408,5.79898122,110550.0,110540.0,0.99286494]
[1761006167616,5.79898122,110550.0,110540.0,1.00286493]
[1761006167827,5.79898122,110550.0,110540.0,0.98286495]
[1761006168061,5.62858496,110550.0,110540.0,0.98286495]
[1761006168424,5.62858496,110550.0,110540.0,0.99286494]
[1761006168804,5.62858496,110550.0,110540.0,0.98286495]
[1761006170369,5.62858496,110550.0,110540.0,0.94668267]
[1761006170598,5.62858496,110550.0,110540.0,0.98286495]
[1761006173433,5.62858496,110550.0,110540.0,0.84366495]
[1761006177556,5.62858496,110550.0,110540.0,0.17263269]
[1761006177763,5.62858496,110550.0,110540.0,0.32273497]
[1761006178661,5.62858496,110550.0,110540.0,0.50366495]
[1761006178821,5.62858496,110550.0,110540.0,0.32273497]
[1761006179448,5.62858496,110550.0,110510.0,0.02066192]
[1761006179449,3.34904649,110540.0,110510.0,0.02066192]
[1761006179648,3.34904649,110540.0,110490.0,0.00209076]
[1761006179649,3.19001128,110520.0,110490.0,0.00209076]
[1761006179821,3.19001128,110520.0,110490.0,0.09190977]
[1761006179822,0.52099547,110500.0,110490.0,0.09190977]
[1761006180028,0.54852136,110500.0,110490.0,0.11617076]
[1761006180433,0.39474406,110500.0,110490.0,0.1246471]
[1761006180636,0.02721817,110500.0,110490.0,0.11617076]
[1761006180931,0.02726727,110500.0,110490.0,0.12778784]
[1761006181259,0.03626727,110500.0,110490.0,0.12778784]
[1761006182489,0.03626727,110500.0,110490.0,0.12878784]
[1761006184723,0.03626727,110500.0,110490.0,0.12721093]
[1761006185054,0.39106075,110510.0,110490.0,0.12721093]
[1761006185274,0.04507769,110510.0,110490.0,0.12770221]
[1761006185475,0.22605757,110510.0,110490.0,0.12770221]
[1761006185853,0.22605757,110510.0,110490.0,0.12670221]
[1761006188490,0.56605757,110510.0,110490.0,0.12670221]
[1761006190558,0.38507769,110510.0,110490.0,0.12670221]
[1761006191181,0.56605761,110510.0,110490.0,0.12670221]
[1761006191792,0.38507769,110510.0,110490.0,0.12670221]
[1761006191991,0.56605753,110510.0,110490.0,0.12670221]
[1761006193064,0.38507769,110510.0,110490.0,0.12670221]
[1761006193441,0.56605708,110510.0,110490.0,0.12670221]
[1761006194164,0.38507769,110510.0,110490.0,0.12670221]
[1761006195072,0.02721541,110510.0,110490.0,0.21652122]
[1761006195874,0.3577436,110520.0,110490.0,0.21652122]
[1761006196072,0.38495763,110520.0,110490.0,0.21652122]
[1761006196804,0.38495763,110520.0,110500.0,0.08981901]
[1761006196805,0.02721403,110520.0,110500.0,0.08981901]
[1761006196953,0.52252414,110530.0,110510.0,0.11412]
[1761006197148,0.56814515,110530.0,110510.0,0.11412]
[1761006197383,0.001,110520.0,110510.0,0.11412]
[1761006197795,0.56656826,110530.0,110510.0,0.11412]
[1761006200458,0.56756826,110530.0,110510.0,0.11412]
[1761006200614,0.56756826,110530.0,110510.0,0.1385797]
[1761006202764,3.21805661,110520.0,110490.0,0.00100513]
[1761006202968,0.18097918,110510.0,110500.0,0.11412]
[1761006203143,0.18097909,110510.0,110500.0,0.11412]
[1761006204851,0.18097909,110510.0,110500.0,0.11512]
[1761006205262,0.24527111,110520.0,110500.0,0.11512]
[1761006205465,3.0,110510.0,110500.0,0.11512]
[1761006206296,3.0,110510.0,110500.0,0.12573251]
[1761006206652,0.0272145,110520.0,110500.0,0.21555152]
[1761006206882,3.0,110520.0,110500.0,0.21555152]
[1761006207899,3.18096358,110520.0,110500.0,0.21655152]
[1761006208110,0.18096358,110520.0,110500.0,0.21655152]